bitfinex/quotes_SOLUSD_20241205
["timestamp","ask_amount","ask_price","bid_price","bid_amount"]
[1733391200571,20.0,237.47,237.3,68.97028431]
[1733391201584,20.0,237.47,237.31,4.205]
[1733391201778,20.0,237.47,237.32,0.32220667]
[1733391202775,20.0,237.47,237.33,4.205]
[1733391203089,29.65587849,237.55,237.32,24.09909067]
[1733391203090,20.0,237.52,237.35,4.205]
[1733391203392,20.0,237.52,237.37,72.85293872]
[1733391203679,20.0,237.52,237.39,72.85293872]
[1733391203849,20.0,237.52,237.4,0.32175903]
[1733391204852,20.0,237.52,237.41,72.85293872]
[1733391205051,8.4604,237.55,237.42,0.32177507]
[1733391205248,8.4604,237.55,237.43,4.205]
[1733391205474,8.4604,237.55,237.45,72.85293872]
[1733391205681,8.4604,237.55,237.46,0.32149769]
[1733391206254,20.0,237.52,237.46,0.32149769]
[1733391206556,6.3433,237.6,237.47,72.85293872]
[1733391206754,6.3433,237.6,237.48,0.32121711]
[1733391207879,20.0,237.57,237.48,0.32121711]
[1733391211272,20.0,237.53,237.48,0.32121711]
[1733391211780,20.0,237.53,237.43,4.205]
[1733391212075,20.0,237.53,237.44,0.32179438]
[1733391213169,5.51203489,237.61,237.45,72.85293872]
[1733391213371,21.14572982,237.68,237.47,4.205]
[1733391213588,21.69369068,237.66,237.48,0.32122312]
[1733391213892,21.35434865,237.65,237.48,0.32122312]
[1733391214399,21.35434865,237.65,237.49,4.205]
[1733391214596,20.0,237.62,237.5,0.3211365]
[1733391214771,41.8462757,237.62,237.5,0.3211365]
[1733391215290,20.0,237.66,237.5,68.96907522]
[1733391215898,1.04942296,237.65,237.5,68.96907522]
[1733391216290,23.776884,237.64,237.5,68.96907522]
[1733391216495,20.0,237.61,237.5,68.96907522]
[1733391216873,23.776884,237.6,237.5,68.96907522]
[1733391217181,20.0,237.57,237.5,0.3211365]
[1733391217372,20.0,237.57,237.46,0.32164842]
[1733391218388,23.776884,237.56,237.46,68.96958714]
[1733391219180,20.0,237.53,237.46,68.96958714]
[1733391219382,20.0,237.53,237.46,0.32164842]
[1733391219593,23.776884,237.52,237.42,0.3220987]
[1733391219793,3.78573627,237.52,237.42,0.3220987]
[1733391219987,43.776884,237.54,237.42,0.3220987]
[1733391220192,20.0,237.54,237.42,0.3220987]
[1733391221707,20.0,237.54,237.42,68.97003742]
[1733391223318,1.04994037,237.53,237.42,68.97003742]
[1733391223910,20.0,237.54,237.43,4.205]
[1733391224096,20.0,237.54,237.44,0.32206977]
[1733391225407,1.04994188,237.53,237.44,0.32206977]
[1733391226001,20.0,237.54,237.44,0.32206977]
[1733391227508,20.0,237.54,237.45,4.205]
[1733391227712,20.0,237.54,237.46,0.32171262]
[1733391229627,1.04987928,237.53,237.45,0.32198627]
[1733391233120,20.0,237.54,237.45,0.32198627]
[1733391233844,20.0,237.54,237.39,4.205]
[1733391234018,21.91992548,237.59,237.41,72.85293872]
[1733391234224,21.91992548,237.59,237.45,4.205]
[1733391234431,21.91992548,237.59,237.47,4.205]
[1733391234631,21.91992548,237.59,237.48,0.32141254]
[1733391235845,20.0,237.56,237.48,0.32141254]
[1733391236852,20.0,237.54,237.49,4.205]
[1733391237025,20.0,237.56,237.5,0.32154519]
[1733391237844,20.0,237.54,237.5,0.32154519]
[1733391238024,20.0,237.54,237.49,0.32180318]
[1733391239921,20.0,237.54,237.38,4.205]
[1733391240121,20.0,237.54,237.39,0.32182373]
[1733391241218,23.776884,237.53,237.4,4.205]
[1733391241424,23.776884,237.53,237.41,0.32213471]
[1733391241843,20.0,237.5,237.43,72.85293872]
[1733391242048,20.0,237.5,237.45,0.12549]
[1733391242257,20.0,237.5,237.47,0.12549]
[1733391245951,1.0526,237.49,237.47,0.12549]
[1733391250164,2.105,237.53,237.47,0.12549]
[1733391252840,24.82676718,237.52,237.43,72.85293872]
[1733391253046,20.0,237.49,237.43,72.85293872]
[1733391254157,1.0527,237.48,237.44,0.12549]
[1733391255752,3.1581,237.48,237.44,0.12549]
[1733391258866,3.1581,237.48,237.37,72.85293872]
[1733391258867,3.1581,237.48,237.38,4.205]
[1733391259754,3.1581,237.48,237.38,72.85293872]
[1733391262971,3.1581,237.48,237.38,68.64793872]
[1733391263271,20.0,237.44,237.38,72.85293872]
[1733391263492,20.0,237.44,237.38,68.64793872]
[1733391264180,20.0,237.44,237.39,4.205]
[1733391264881,1.0529,237.43,237.3,72.85293872]
[1733391269864,3.1587,237.43,237.3,72.85293872]
[1733391270071,4.2090074,237.43,237.3,72.85293872]
[1733391270399,23.776884,237.42,237.3,72.85293872]
[1733391271771,1.053,237.41,237.3,72.85293872]
[1733391271971,20.0,237.39,237.3,72.85293872]
[1733391274178,21.0531,237.38,237.3,72.85293872]
[1733391276073,21.0531,237.38,237.31,4.205]
[1733391276775,23.1594,237.38,237.3,68.64793872]
[1733391278093,23.1594,237.38,237.31,4.205]
[1733391279029,23.1594,237.38,237.3,68.64793872]
[1733391279199,23.1594,237.38,237.31,4.205]
[1733391279599,23.776884,237.37,237.3,68.64793872]
[1733391279811,20.0,237.34,237.16,69.26773872]
[1733391280295,20.0,237.34,237.17,4.205]
[1733391280716,20.0,237.34,237.17,72.85293872]
[1733391280915,3.16,237.33,237.17,72.85293872]
[1733391281119,23.16,237.33,237.17,72.85293872]
[1733391285734,20.0,237.34,237.17,72.85293872]
[1733391286028,8.3745,237.33,237.17,72.85293872]
[1733391287410,11.5345,237.33,237.17,72.85293872]
[1733391287804,1.0535,237.29,237.17,72.85293872]
[1733391289637,3.1606,237.29,237.17,72.85293872]
[1733391290921,20.0,237.25,237.18,4.205]
[1733391291120,20.0,237.25,237.18,72.85293872]
[1733391292427,1.0537,237.24,237.18,72.85293872]
[1733391293032,3.1612,237.24,237.18,72.85293872]
[1733391293209,23.1612,237.24,237.18,68.64793872]
[1733391294255,8.8368,237.21,237.04,68.64793872]
[1733391294427,2.4391,237.13,236.95,69.15702072]
[1733391294747,20.0,237.09,236.95,69.15702072]
[1733391294945,44.82872598,237.08,236.95,69.15702072]
[1733391295250,6.5557,237.11,236.96,68.64793872]
[1733391295449,7.61,237.11,236.96,68.64793872]
[1733391296239,7.61,237.11,236.97,4.205]
[1733391296555,7.61,237.11,236.96,68.64793872]
[1733391297357,7.61,237.11,236.97,4.205]
[1733391298354,7.61,237.11,236.96,68.64793872]
[1733391298558,7.61,237.11,236.97,4.205]
[1733391298759,7.61,237.11,236.97,23.776884]
[1733391298941,6.5557,237.11,236.97,23.776884]
[1733391299554,6.5557,237.11,237.0,72.85293872]
[1733391300026,7.61,237.11,237.0,72.85293872]
[1733391300221,20.0,237.08,237.0,68.64793872]
[1733391300452,20.0,237.08,237.01,4.205]
[1733391302740,20.0,237.08,237.01,72.85293872]
[1733391302942,21.0545,237.08,236.96,4.205]
[1733391303147,3.38956358,237.07,236.95,69.15702072]
[1733391303758,6.1176,237.02,236.95,0.509082]
[1733391304132,20.0,236.99,236.95,0.509082]
[1733391304437,2.3119,236.98,236.95,8.2e-05]
[1733391304954,20.0,236.94,236.84,4.205]
[1733391305744,23.776884,236.93,236.84,4.205]
[1733391305943,20.0,236.9,236.84,4.205]
[1733391307331,1.0553,236.89,236.72,97.605]
[1733391307845,8.9271,236.88,236.72,97.605]
[1733391308034,20.0,236.85,236.72,97.605]
[1733391309287,21.0555,236.85,236.72,97.605]
[1733391310053,21.0555,236.85,236.72,93.4]
[1733391310261,6.0214,236.84,236.73,4.205]
[1733391310497,6.0214,236.84,236.72,93.4]
[1733391310985,6.0214,236.84,236.73,23.776884]
[1733391311161,6.0214,236.84,236.76,4.205]
[1733391312368,6.0214,236.84,236.73,27.981884]
[1733391313989,6.0214,236.84,236.73,4.205]
[1733391314879,6.0214,236.84,236.73,97.605]
[1733391315189,24.832484,236.83,236.74,4.205]
[1733391315370,20.0,236.8,236.74,4.205]
[1733391316171,6.0214,236.84,236.64,97.605]
[1733391316172,23.776884,236.78,236.64,97.605]
[1733391316369,20.0,236.74,236.64,97.605]
[1733391316583,10.9465807,236.74,236.64,97.605]
[1733391316797,6.2133,236.77,236.64,97.605]
[1733391317285,6.2133,236.77,236.66,4.205]
[1733391318410,6.2133,236.77,236.64,93.4]
[1733391318411,6.2133,236.77,236.65,4.205]
[1733391320185,1.0559,236.76,236.65,4.205]
[1733391320380,20.0,236.74,236.65,97.605]
[1733391322083,6.2133,236.77,236.72,4.205]
[1733391322385,2.11,236.96,236.73,93.4]
[1733391322386,21.96084642,236.82,236.73,93.4]
[1733391322590,6.6164,236.83,236.73,93.4]
[1733391323180,6.6164,236.83,236.74,23.776884]
[1733391323384,6.6164,236.83,236.75,4.205]
[1733391323904,6.6164,236.83,236.74,23.776884]
[1733391324689,21.34773023,236.88,236.74,117.176884]
[1733391325307,6.613,236.89,236.74,121.381884]
[1733391326185,27.72017917,236.89,236.78,23.776884]
[1733391326381,21.10717917,236.89,236.8,27.981884]
[1733391326600,2.5043,236.9,236.8,27.981884]
[1733391327409,2.5043,236.9,236.8,121.381884]
[1733391328211,2.5043,236.9,236.8,97.605]
[1733391331015,2.5043,236.9,236.8,93.4]
[1733391332509,5.2767,236.89,236.8,93.4]
[1733391333814,5.2767,236.89,236.81,4.205]
[1733391334510,5.2771,236.87,236.81,4.205]
[1733391335292,5.2771,236.87,236.8,93.4]
[1733391335494,20.0,236.83,236.8,4.205]
[1733391336007,26.0733,236.83,236.8,4.205]
[1733391336607,26.0733,236.83,236.72,97.605]
[1733391336819,32.407,236.83,236.72,97.605]
[1733391337691,26.0733,236.83,236.72,97.605]
[1733391338212,20.0,236.83,236.72,97.605]
[1733391338422,6.3326,236.87,236.72,97.605]
[1733391338841,20.0,236.84,236.72,97.605]
[1733391339915,6.3323,236.88,236.72,97.605]
[1733391340223,23.776884,236.87,236.72,97.605]
[1733391340810,20.0,236.84,236.72,97.605]
[1733391342508,6.3332,236.85,236.72,97.605]
[1733391343721,6.3332,236.85,236.76,4.205]
[1733391344734,6.3332,236.85,236.76,97.605]
[1733391346246,6.3332,236.85,236.76,93.4]
[1733391346444,23.776884,236.84,236.76,93.4]
[1733391346740,24.82986701,236.84,236.73,93.4]
[1733391346949,6.3344,236.8,236.71,0.509082]
[1733391347137,23.776884,236.79,236.71,0.509082]
[1733391348236,6.3349,236.78,236.71,0.509082]
[1733391348435,12.9297,236.78,236.71,0.509082]
[1733391351125,6.3339,236.82,236.72,4.205]
[1733391351313,8.6447,236.85,236.72,97.605]
[1733391351715,6.3333,236.84,236.72,97.605]
[1733391352915,20.05295828,236.84,236.72,93.4]
[1733391353240,23.776884,236.83,236.71,0.509082]
[1733391353423,23.776884,236.81,236.71,0.509082]
[1733391353644,20.0,236.78,236.71,0.509082]
[1733391353851,23.776884,236.79,236.71,0.509082]
[1733391354155,20.0,236.76,236.71,0.509082]
[1733391354845,6.3349,236.78,236.71,0.509082]
[1733391355039,20.05804826,236.78,236.71,0.509082]
[1733391355255,20.0,236.75,236.71,0.509082]
[1733391356339,7.392,236.74,236.71,0.509082]
[1733391356540,16.2467,236.74,236.71,0.509082]
[1733391360088,7.392,236.74,236.71,0.509082]
[1733391360465,20.0,236.75,236.71,0.509082]
[1733391362489,27.3918,236.75,236.71,0.509082]
[1733391363092,20.0,236.75,236.71,0.509082]
[1733391363389,7.3911,236.77,236.71,0.509082]
[1733391366190,23.776884,236.76,236.71,0.509082]
[1733391366388,7.3917,236.75,236.71,0.509082]
[1733391368522,2.4084,236.79,236.71,0.509082]
[1733391368665,7.3904,236.8,236.71,0.509082]
[1733391368868,6.0324,236.83,236.72,4.205]
[1733391369563,7.389,236.84,236.72,4.205]
[1733391369764,7.3873,236.89,236.72,97.605]
[1733391370183,20.0,236.85,236.72,97.605]
[1733391370574,1.05294385,236.84,236.73,4.205]
[1733391371182,23.776884,236.83,236.73,97.605]
[1733391371403,20.0,236.8,236.73,97.605]
[1733391372596,27.3902,236.8,236.73,97.605]
[1733391372971,23.776884,236.79,236.71,93.909082]
[1733391373183,23.776884,236.79,236.71,0.509082]
[1733391374607,8.44401337,236.78,236.71,0.509082]
[1733391375194,23.776884,236.77,236.71,0.509082]
[1733391375579,20.0,236.73,236.71,0.509082]
[1733391375769,23.776884,236.72,236.71,8.2e-05]
[1733391376388,24.83042883,236.72,236.71,8.2e-05]
[1733391376578,33.38692883,236.72,236.71,8.2e-05]
[1733391378213,39.726084,236.72,236.71,8.2e-05]
[1733391378573,40.77955109,236.72,236.71,8.2e-05]
[1733391379914,39.726084,236.72,236.71,8.2e-05]
[1733391380286,40.77962628,236.72,236.71,8.2e-05]
[1733391383523,55.56502628,236.72,236.54,97.605]
[1733391383796,23.776884,236.68,236.54,97.605]
[1733391383996,1.05386968,236.67,236.54,97.605]
[1733391384173,20.0,236.69,236.5,4.205]
[1733391384374,23.776884,236.67,236.5,4.205]
[1733391384584,23.776884,236.65,236.5,4.205]
[1733391384881,23.776884,236.61,236.5,97.605]
[1733391385299,7.3964,236.6,236.5,97.605]
[1733391387783,20.0,236.57,236.5,97.605]
[1733391388542,20.0,236.58,236.48,93.909082]
[1733391388685,23.776884,236.56,236.48,0.509082]
[1733391389274,23.776884,236.58,236.48,0.509082]
[1733391389501,23.776884,236.56,236.48,0.509082]
[1733391389700,7.398,236.55,236.48,0.509082]
[1733391391204,7.3986,236.53,236.48,0.509082]
[1733391395157,23.776884,236.52,236.48,0.509082]
[1733391395436,8.45304083,236.53,236.48,0.509082]
[1733391395437,43.776884,236.49,236.48,0.509082]
[1733391395627,43.776884,236.49,236.48,8.2e-05]
[1733391396338,51.176684,236.49,236.48,8.2e-05]
[1733391396510,7.3987,236.53,236.48,8.2e-05]
[1733391397908,7.397,236.58,236.48,8.2e-05]
[1733391398106,7.397,236.58,236.48,93.400082]
[1733391398427,7.3959,236.62,236.48,93.400082]
[1733391399324,7.3959,236.62,236.48,97.605082]
[1733391400034,20.0,236.59,236.48,93.400082]
[1733391400612,7.3946,236.66,236.5,23.776884]
[1733391401237,7.3946,236.66,236.51,4.205]
[1733391401808,7.3946,236.66,236.5,23.776884]
[1733391402040,20.0,236.63,236.5,23.776884]
[1733391402415,20.0,236.63,236.51,4.205]
[1733391403944,20.0,236.63,236.5,23.776884]
[1733391404841,20.0,236.63,236.5,117.176884]
[1733391407433,20.0,236.66,236.5,117.176884]
[1733391407643,24.83066666,236.68,236.5,117.176884]
[1733391407848,23.776884,236.64,236.5,93.4]
[1733391408136,7.3958,236.62,236.5,93.4]
[1733391409715,9.8446,236.6,236.5,93.4]
[1733391410035,23.776884,236.55,236.48,8.2e-05]
[1733391411039,7.3983,236.54,236.48,8.2e-05]
[1733391412033,7.3989,236.52,236.48,8.2e-05]
[1733391412244,20.0,236.49,236.48,8.2e-05]
[1733391414547,7.3989,236.52,236.48,8.2e-05]
[1733391415119,7.3989,236.52,236.4,92.694982]
[1733391416134,23.776884,236.51,236.4,92.694982]
[1733391416322,24.83139892,236.51,236.4,92.694982]
[1733391416635,7.3995,236.5,236.29,0.8405]
[1733391416948,23.776884,236.49,236.29,0.8405]
[1733391417432,7.3995,236.5,236.29,0.8405]
[1733391417827,7.4002,236.48,236.34,4.205]
[1733391418350,7.3989,236.52,236.36,96.299982]
[1733391418641,7.3989,236.52,236.38,4.205]
[1733391419652,7.3989,236.52,236.37,4.205]
[1733391420357,7.3989,236.52,236.37,96.299982]
[1733391421355,7.3989,236.52,236.39,96.299982]
[1733391421551,7.3989,236.52,236.4,0.8405]
[1733391422140,7.3989,236.52,236.41,23.776884]
[1733391422337,7.3989,236.52,236.42,4.205]
[1733391422646,7.3977,236.56,236.46,4.205]
[1733391423857,7.3961,236.61,236.5,4.205]
[1733391424055,7.3961,236.61,236.5,96.299982]
[1733391424665,2.3148,236.67,236.54,4.205]
[1733391424841,2.3148,236.67,236.54,96.299982]
[1733391425162,6.4185,236.7,236.54,96.299982]
[1733391426256,7.3945,236.66,236.54,96.299982]
[1733391428246,2.4766,236.73,236.58,4.205]
[1733391428447,7.392,236.75,236.58,24.205]
[1733391428947,7.392,236.75,236.6,4.205]
[1733391429130,7.392,236.75,236.62,4.205]
[1733391429851,7.392,236.75,236.62,96.299982]
[1733391431663,7.392,236.75,236.63,0.8405]
[1733391431837,7.3902,236.8,236.64,96.299982]
[1733391432861,1.05320438,236.79,236.64,96.299982]
[1733391433049,7.3908,236.78,236.64,96.299982]
[1733391433571,23.776884,236.77,236.64,96.299982]
[1733391434258,7.3914,236.76,236.64,96.299982]
[1733391435674,29.5074,237.23,236.64,96.299982]
[1733391435675,1.05329756,236.94,236.75,0.8405]
[1733391435976,8.5732,236.95,236.8,4.205]
[1733391436157,1.05251417,236.94,236.8,4.205]
[1733391436356,7.3861,236.93,236.8,4.205]
[1733391436662,1.05286391,236.92,236.8,4.205]
[1733391437283,7.3873,236.89,236.76,4.205]
[1733391437660,20.0,236.86,236.76,4.205]
[1733391439264,45.936184,236.92,236.76,4.205]
[1733391439453,23.776884,236.88,236.76,4.205]
[1733391440376,7.388,236.87,236.76,4.205]
[1733391441051,7.388,236.87,236.76,96.299982]
[1733391442465,7.3886,236.85,236.71,96.299982]
[1733391442782,7.3886,236.85,236.75,4.205]
[1733391443867,20.0,236.81,236.71,4.205]
[1733391444665,33.50306071,236.84,236.71,4.205]
[1733391444860,20.0,236.77,236.65,96.299982]
[1733391445187,20.0,236.78,236.65,96.299982]
[1733391445365,22.1677,236.83,236.65,96.299982]
[1733391445557,20.0,236.8,236.65,96.299982]
[1733391445960,7.3905,236.79,236.65,96.299982]
[1733391446881,22.1715,236.79,236.65,96.299982]
[1733391447079,20.0,236.76,236.65,96.299982]
[1733391447462,20.0,236.76,236.65,4.205]
[1733391447882,7.392,236.74,236.59,96.299982]
[1733391448292,20.0,236.7,236.46,92.935482]
[1733391448459,20.0,236.66,236.47,93.06157999]
[1733391448658,1.05411165,236.65,236.47,93.06157999]
[1733391448855,8.9361,236.73,236.47,92.094982]
[1733391449055,1.05348958,236.72,236.47,92.094982]
[1733391449283,20.0,236.68,236.48,4.205]
[1733391449459,27.3941,236.68,236.48,4.205]
[1733391450879,27.3941,236.68,236.51,4.205]
[1733391451268,27.3941,236.68,236.56,4.205]
[1733391451469,27.3941,236.68,236.56,96.299982]
[1733391452163,7.3945,236.66,236.56,96.299982]
[1733391452980,1.05382001,236.65,236.56,96.299982]
[1733391453383,20.0,236.61,236.47,96.299982]
[1733391453589,1.05410157,236.6,236.47,96.299982]
[1733391453784,23.776884,236.59,236.47,4.205]
[1733391454094,23.776884,236.57,236.47,4.205]
[1733391454279,7.398,236.55,236.42,96.299982]
[1733391454462,1.05445719,236.54,236.42,96.299982]
[1733391454664,1.05445719,236.54,236.42,4.205]
[1733391455690,20.0,236.52,236.36,4.205]
[1733391456402,7.3992,236.51,236.38,4.205]
[1733391456904,7.3992,236.51,236.38,24.205]
[1733391458499,1.05446048,236.5,236.36,4.205]
[1733391458674,1.05446048,236.5,236.36,97.005]
[1733391458874,20.0,236.48,236.36,97.005]
[1733391459884,7.3992,236.51,236.36,97.005]
[1733391460489,20.0,236.52,236.38,4.205]
[1733391460803,7.398,236.55,236.42,92.8]
[1733391461174,7.398,236.55,236.43,23.776884]
[1733391461578,7.398,236.55,236.43,4.205]
[1733391463626,7.3986,236.53,236.43,4.205]
[1733391466383,1.05439486,236.52,236.43,4.205]
[1733391466711,20.0,236.5,236.38,97.005]
[1733391466913,1.0545672,236.49,236.38,97.005]
[1733391467208,20.0,236.5,236.38,97.005]
[1733391467593,7.3998,236.49,236.38,97.005]
[1733391468786,20.0,236.51,236.38,97.005]
[1733391469080,1.05459795,236.5,236.38,97.005]
[1733391469511,20.0,236.51,236.38,97.005]
[1733391470096,7.3983,236.54,236.39,23.776884]
[1733391470302,7.3983,236.54,236.4,4.205]
[1733391470728,1.05429841,236.53,236.4,4.205]
[1733391471818,16.71897028,236.58,236.4,97.005]
[1733391471819,23.776884,236.55,236.4,97.005]
[1733391472118,23.776884,236.53,236.4,97.005]
[1733391472627,20.0,236.53,236.4,97.005]
[1733391472931,20.0,236.53,236.41,0.8405]
[1733391473531,20.0,236.53,236.42,4.205]
[1733391474632,7.3987,236.53,236.42,4.205]
[1733391474804,8.45306454,236.53,236.42,4.205]
[1733391476526,7.3987,236.53,236.42,4.205]
[1733391477125,7.3987,236.53,236.39,4.205]
[1733391477434,7.3987,236.53,236.39,97.005]
[1733391477435,7.3992,236.51,236.39,97.005]
[1733391483624,1.05440147,236.54,236.43,4.205]
[1733391483817,7.3974,236.57,236.43,117.005]
[1733391484724,14.785,236.73,236.4,23.776884]
[1733391484725,2.4685,236.66,236.48,4.205]
[1733391484913,1.05388753,236.65,236.5,4.205]
[1733391485828,7.3951,236.64,236.5,4.205]
[1733391488211,7.3951,236.64,236.52,4.205]
[1733391488415,7.3958,236.62,236.52,4.205]
[1733391489230,7.3958,236.62,236.5,4.205]
[1733391492118,7.3958,236.62,236.52,4.205]
[1733391494231,9.8631,236.66,236.54,97.005]
[1733391494436,7.3946,236.66,236.54,97.005]
[1733391494634,2.3293,236.71,236.56,4.205]
[1733391494840,7.3934,236.7,236.56,4.205]
[1733391495014,7.3934,236.7,236.58,97.005]
[1733391495937,7.3934,236.7,236.59,4.219]
[1733391501150,7.3934,236.7,236.56,4.219]
[1733391502444,20.0,236.66,236.51,27.995884]
[1733391502750,20.0,236.66,236.51,4.219]
[1733391503743,7.3948,236.65,236.51,4.219]
[1733391503940,7.3948,236.65,236.51,97.019]
[1733391504133,8.4486315,236.65,236.51,97.019]
[1733391505523,7.3948,236.65,236.51,97.019]
[1733391507464,7.3955,236.63,236.51,97.019]
[1733391513154,7.3955,236.63,236.49,4.219]
[1733391513352,7.3955,236.63,236.49,24.219]
[1733391514031,7.3961,236.61,236.49,24.219]
[1733391519261,6.3168,236.62,236.49,117.019]
[1733391520650,7.3955,236.63,236.49,117.019]
[1733391521944,2.4319,236.62,236.49,117.019]
[1733391522160,7.3961,236.61,236.49,117.019]
[1733391522972,2.4319,236.62,236.49,117.019]
[1733391523352,4.827,236.65,236.51,97.019]
[1733391523558,7.24083357,236.68,236.51,97.019]
[1733391524351,20.0,236.65,236.51,97.019]
[1733391525361,27.3951,236.65,236.51,97.019]
[1733391526867,7.3955,236.63,236.51,97.019]
[1733391528953,7.3955,236.63,236.49,20.0]
[1733391528954,7.3961,236.61,236.5,4.219]
[1733391529162,8.45019093,236.61,236.5,4.219]
[1733391530581,7.3961,236.61,236.5,4.219]
[1733391531379,7.3951,236.65,236.53,24.219]
[1733391534276,7.3955,236.63,236.53,24.219]
[1733391534472,7.3955,236.63,236.51,4.219]
[1733391535182,2.2927,236.66,236.54,4.219]
[1733391536466,7.3944,236.67,236.54,4.219]
[1733391537074,7.3944,236.67,236.54,97.019]
[1733391540371,1.05373109,236.66,236.54,97.019]
[1733391540577,23.776884,236.66,236.54,97.019]
[1733391541882,7.3944,236.67,236.54,97.019]
[1733391542089,6.187,236.68,236.54,97.019]
[1733391542772,2.2994,236.71,236.58,4.219]
[1733391542977,2.2994,236.71,236.58,24.219]
[1733391543364,6.3635,236.73,236.58,117.019]
[1733391544290,6.3635,236.73,236.6,4.219]
[1733391544667,6.3635,236.73,236.62,4.219]
[1733391544871,6.3635,236.73,236.64,4.219]
[1733391546896,5.34230072,236.75,236.65,4.219]
[1733391547076,2.4875,236.77,236.69,4.219]
[1733391547392,13.9115,236.8,236.69,4.219]
[1733391547604,13.9115,236.8,236.71,4.219]
[1733391548473,13.9115,236.8,236.69,4.219]
[1733391549302,13.9115,236.8,236.71,4.219]
[1733391549983,6.521,236.8,236.71,4.219]
[1733391550183,1.89250506,236.82,236.73,4.219]
[1733391550384,2.4468,236.84,236.74,23.776884]
[1733391550600,6.3063,236.85,236.74,23.776884]
[1733391550601,6.3063,236.85,236.75,4.219]
[1733391551099,8.44074318,236.88,236.75,4.219]
[1733391551298,10.32762351,236.88,236.75,4.219]
[1733391554073,23.776884,236.87,236.74,4.219]
[1733391554276,20.0,236.82,236.68,95.1309]
[1733391555095,20.0,236.82,236.69,4.219]
[1733391555302,8.44183425,236.85,236.68,95.1309]
[1733391555798,20.0,236.82,236.69,23.776884]
[1733391556186,20.0,236.82,236.71,27.995884]
[1733391556691,20.0,236.82,236.71,4.219]
[1733391557380,20.0,236.82,236.72,4.219]
[1733391558205,20.0,236.78,236.57,95.183]
[1733391558978,20.0,236.78,236.58,4.219]
[1733391559475,20.0,236.78,236.65,4.219]
[1733391561610,1.05323348,236.77,236.61,92.8]
[1733391562476,28.44424264,236.78,236.62,4.219]
[1733391562796,27.3909,236.78,236.64,4.219]
[1733391562997,2.4685,236.8,236.66,20.0]
[1733391563304,2.4685,236.8,236.67,23.776884]
[1733391563504,4.37313285,236.8,236.69,23.776884]
[1733391563737,4.37313285,236.8,236.67,23.776884]
[1733391564506,4.37313285,236.8,236.7,4.219]
[1733391565009,2.4685,236.8,236.72,4.219]
[1733391565313,6.3275,236.81,236.72,4.219]
[1733391566118,6.3275,236.81,236.69,4.219]
[1733391567407,6.3275,236.81,236.71,4.219]
[1733391567611,23.776884,236.8,236.71,4.219]
[1733391567803,2.3038,236.76,236.71,4.219]
[1733391567983,1.05344663,236.75,236.71,4.219]
[1733391568178,1.05344663,236.75,236.6,4.219]
[1733391568383,6.2337,236.73,236.6,4.219]
[1733391568601,1.05369289,236.72,236.6,4.219]
[1733391568815,20.0,236.7,236.6,4.219]
[1733391569287,1.05372908,236.69,236.53,97.019]
[1733391569904,1.05372908,236.69,236.57,4.219]